[Event "Early-Titled-Tuesday-Blitz-May-14-2024"]
[Site "Chess.com"]
[Date "2024.05.14"]
[Round "4"]
[White "cmunda"]
[Black "maracayo"]
[Result "0-1"]
[WhiteElo "2136"]
[BlackElo "2366"]
[TimeControl "180+1"]
[EndTime "8:40:12 PDT"]
[Termination "maracayo won by resignation"]

1. b3 {[%clk 0:03:00.9]} 1... e5 {[%clk 0:02:58.8]} 2. Bb2 {[%clk 0:03:01.8]}
2... d6 {[%clk 0:02:58.1]} 3. g3 {[%clk 0:03:02.1]} 3... Nf6 {[%clk 0:02:58.2]}
4. Bg2 {[%clk 0:03:02.4]} 4... Be7 {[%clk 0:02:58.7]} 5. e3 {[%clk 0:03:02.8]}
5... O-O {[%clk 0:02:58.8]} 6. Ne2 {[%clk 0:03:03.1]} 6... Re8 {[%clk
0:02:57.7]} 7. O-O {[%clk 0:03:03.1]} 7... Nbd7 {[%clk 0:02:57.8]} 8. f4 {[%clk
0:03:03.1]} 8... h6 {[%clk 0:02:54]} 9. Nbc3 {[%clk 0:03:02.2]} 9... c6 {[%clk
0:02:53.6]} 10. h3 {[%clk 0:02:58.2]} 10... Bf8 {[%clk 0:02:52.6]} 11. g4 {[%clk
0:02:57.6]} 11... exf4 {[%clk 0:02:49.4]} 12. Nxf4 {[%clk 0:02:56.9]} 12... d5
{[%clk 0:02:49]} 13. Nce2 {[%clk 0:02:52.1]} 13... Ne5 {[%clk 0:02:47.6]} 14.
Ng3 {[%clk 0:02:50.6]} 14... Bd6 {[%clk 0:02:37.3]} 15. Nfh5 {[%clk 0:02:50.3]}
15... Nxh5 {[%clk 0:02:33.6]} 16. Nxh5 {[%clk 0:02:50.4]} 16... Qh4 {[%clk
0:02:18.1]} 17. Qe1 {[%clk 0:02:46.8]} 17... Qxe1 {[%clk 0:02:06.6]} 18. Raxe1
{[%clk 0:02:47.7]} 18... f6 {[%clk 0:02:06.5]} 19. e4 {[%clk 0:02:36.9]} 19...
dxe4 {[%clk 0:01:59.7]} 20. Rxe4 {[%clk 0:02:36]} 20... Be6 {[%clk 0:01:55]} 21.
d4 {[%clk 0:02:32]} 21... Nf7 {[%clk 0:01:54]} 22. c4 {[%clk 0:02:27.5]} 22...
Bd7 {[%clk 0:01:43.7]} 23. Rfe1 {[%clk 0:02:26.5]} 23... a5 {[%clk 0:01:37.9]}
24. a3 {[%clk 0:02:18.8]} 24... Kf8 {[%clk 0:01:28.6]} 25. c5 {[%clk 0:01:59]}
25... Bc7 {[%clk 0:01:25.7]} 26. Bc1 {[%clk 0:01:57.1]} 26... Rxe4 {[%clk
0:01:21.3]} 27. Rxe4 {[%clk 0:01:54.7]} 27... Ng5 {[%clk 0:01:07]} 28. Re1
{[%clk 0:01:40.4]} 28... Re8 {[%clk 0:01:05.2]} 29. Rxe8+ {[%clk 0:01:37.6]}
29... Bxe8 {[%clk 0:01:06.1]} 30. Nf4 {[%clk 0:01:34.4]} 30... Bf7 {[%clk
0:01:05]} 31. b4 {[%clk 0:01:33]} 31... a4 {[%clk 0:00:45.4]} 32. d5 {[%clk
0:01:26]} 32... Bxf4 {[%clk 0:00:41.4]} 33. Bxf4 {[%clk 0:01:20.5]} 33... Bxd5
{[%clk 0:00:34.9]} 34. Bxg5 {[%clk 0:01:19.9]} 34... Bxg2 {[%clk 0:00:30.3]} 35.
Kxg2 {[%clk 0:01:14.3]} 35... hxg5 {[%clk 0:00:29.7]} 36. Kf3 {[%clk 0:01:11.7]}
36... Ke7 {[%clk 0:00:30.4]} 37. Ke4 {[%clk 0:01:11.9]} 37... Ke6 {[%clk
0:00:30.8]} 38. Kd4 {[%clk 0:01:04.2]} 38... g6 {[%clk 0:00:30.9]} 39. Ke4
{[%clk 0:01:04.1]} 39... f5+ {[%clk 0:00:31.1]} 40. Kd4 {[%clk 0:01:02.1]} 40...
Kf6 {[%clk 0:00:30.4]} 41. Kd3 {[%clk 0:00:54.7]} 41... Ke5 {[%clk 0:00:30.2]}
42. Ke3 {[%clk 0:00:55]} 42... Kd5 {[%clk 0:00:29]} 43. Kd3 {[%clk 0:00:54.9]}
43... f4 {[%clk 0:00:29]} 0-1

[Event "Early-Titled-Tuesday-Blitz-May-14-2024"]
[Site "Chess.com"]
[Date "2024.05.14"]
[Round "4"]
[White "Hasangatin_Ramil"]
[Black "motivated_bishop"]
[Result "1-0"]
[WhiteElo "2686"]
[BlackElo "2498"]
[TimeControl "180+1"]
[EndTime "8:40:13 PDT"]
[Termination "Hasangatin_Ramil won by resignation"]

1. e4 {[%clk 0:03:00.9]} 1... e5 {[%clk 0:03:00.1]} 2. Nf3 {[%clk 0:03:00.9]}
2... Nc6 {[%clk 0:03:00.4]} 3. Bb5 {[%clk 0:03:01.4]} 3... a6 {[%clk 0:03:00.4]}
4. Ba4 {[%clk 0:03:02]} 4... Nf6 {[%clk 0:03:00.3]} 5. Bxc6 {[%clk 0:03:02.2]}
5... dxc6 {[%clk 0:03:00.2]} 6. d3 {[%clk 0:03:02.7]} 6... Bd6 {[%clk
0:02:59.7]} 7. Nc3 {[%clk 0:03:02.7]} 7... Nd7 {[%clk 0:02:56.8]} 8. h3 {[%clk
0:03:00]} 8... O-O {[%clk 0:02:56.5]} 9. Be3 {[%clk 0:03:00]} 9... f6 {[%clk
0:02:56.7]} 10. Nh2 {[%clk 0:02:57.2]} 10... Nc5 {[%clk 0:02:56.7]} 11. Nf1
{[%clk 0:02:44.9]} 11... Ne6 {[%clk 0:02:54.9]} 12. Ne2 {[%clk 0:02:44.4]} 12...
c5 {[%clk 0:02:54.1]} 13. Nd2 {[%clk 0:02:43.7]} 13... b5 {[%clk 0:02:49.9]} 14.
O-O {[%clk 0:02:43.1]} 14... Bb7 {[%clk 0:02:49.1]} 15. f4 {[%clk 0:02:42.8]}
15... f5 {[%clk 0:02:45.1]} 16. exf5 {[%clk 0:02:40]} 16... Rxf5 {[%clk
0:02:29.7]} 17. Ng3 {[%clk 0:02:39.9]} 17... exf4 {[%clk 0:01:40.1]} 18. Nxf5
{[%clk 0:02:35.8]} 18... fxe3 {[%clk 0:01:40.2]} 19. Nxe3 {[%clk 0:02:33.3]}
19... Qg5 {[%clk 0:01:31.3]} 20. Ng4 {[%clk 0:02:17.3]} 20... h5 {[%clk
0:01:26.5]} 21. Nf3 {[%clk 0:02:13.8]} 21... Qf4 {[%clk 0:00:46.3]} 22. Qe1
{[%clk 0:02:01.9]} 22... Nd4 {[%clk 0:00:40.8]} 23. Nfe5 {[%clk 0:01:26.5]}
23... Qg5 {[%clk 0:00:28.5]} 24. Nf7 {[%clk 0:01:26.4]} 24... Qd5 {[%clk
0:00:22.9]} 25. Ne3 {[%clk 0:01:07.6]} 25... Qe6 {[%clk 0:00:07.1]} 26. Nxd6
{[%clk 0:01:07.5]} 26... cxd6 {[%clk 0:00:07.1]} 27. c3 {[%clk 0:01:06]} 27...
Nc6 {[%clk 0:00:06.1]} 28. Qd2 {[%clk 0:00:46.7]} 28... Re8 {[%clk 0:00:05.5]}
29. Rae1 {[%clk 0:00:46.1]} 29... Ne5 {[%clk 0:00:05.6]} 30. d4 {[%clk
0:00:46.1]} 30... cxd4 {[%clk 0:00:05.4]} 31. cxd4 {[%clk 0:00:47]} 31... Nc4
{[%clk 0:00:03.8]} 32. Nxc4 {[%clk 0:00:46.8]} 1-0

[Event "Early-Titled-Tuesday-Blitz-May-14-2024"]
[Site "Chess.com"]
[Date "2024.05.14"]
[Round "4"]
[White "ravengelic"]
[Black "Jospem"]
[Result "0-1"]
[WhiteElo "2680"]
[BlackElo "2991"]
[TimeControl "180+1"]
[EndTime "8:40:14 PDT"]
[Termination "Jospem won by resignation"]

1. d4 {[%clk 0:03:00.9]} 1... Nf6 {[%clk 0:02:58.1]} 2. Bf4 {[%clk 0:03:00.6]}
2... b6 {[%clk 0:02:57.8]} 3. Nf3 {[%clk 0:02:58.9]} 3... Bb7 {[%clk 0:02:57.6]}
4. e3 {[%clk 0:02:58.6]} 4... d6 {[%clk 0:02:57.2]} 5. h3 {[%clk 0:02:58.8]}
5... Nbd7 {[%clk 0:02:57.6]} 6. Be2 {[%clk 0:02:58.9]} 6... e6 {[%clk
0:02:58.3]} 7. O-O {[%clk 0:02:59.2]} 7... h6 {[%clk 0:02:59]} 8. Bh2 {[%clk
0:02:59.8]} 8... g5 {[%clk 0:02:59.3]} 9. Nfd2 {[%clk 0:02:59.5]} 9... Rg8
{[%clk 0:02:59.4]} 10. Bf3 {[%clk 0:02:58.7]} 10... Qc8 {[%clk 0:02:58.1]} 11.
Bxb7 {[%clk 0:02:58.2]} 11... Qxb7 {[%clk 0:02:59]} 12. Qf3 {[%clk 0:02:58.2]}
12... Qxf3 {[%clk 0:02:59.2]} 13. gxf3 {[%clk 0:02:59.1]} 13... h5 {[%clk
0:02:58.5]} 14. Nc3 {[%clk 0:02:56.2]} 14... a6 {[%clk 0:02:58.8]} 15. a4 {[%clk
0:02:55]} 15... Be7 {[%clk 0:02:56.1]} 16. Rfd1 {[%clk 0:02:54]} 16... O-O-O
{[%clk 0:02:56.3]} 17. Nce4 {[%clk 0:02:52.1]} 17... Nxe4 {[%clk 0:02:55.2]} 18.
fxe4 {[%clk 0:02:52.3]} 18... g4 {[%clk 0:02:55.4]} 19. hxg4 {[%clk 0:02:51.6]}
19... Rxg4+ {[%clk 0:02:56.1]} 20. Kh1 {[%clk 0:02:44]} 20... f5 {[%clk
0:02:20.7]} 21. Rg1 {[%clk 0:02:37.9]} 21... Nf6 {[%clk 0:02:18.2]} 22. exf5
{[%clk 0:02:33.1]} 22... exf5 {[%clk 0:02:19.1]} 23. f3 {[%clk 0:02:33]} 23...
Rgg8 {[%clk 0:02:18.9]} 24. Rxg8 {[%clk 0:02:29.2]} 24... Rxg8 {[%clk
0:02:19.8]} 25. Rg1 {[%clk 0:02:28.6]} 25... Rxg1+ {[%clk 0:02:16.6]} 26. Kxg1
{[%clk 0:02:28.4]} 26... Nd5 {[%clk 0:02:13.1]} 27. Kf2 {[%clk 0:02:24.6]} 27...
Nb4 {[%clk 0:02:13.5]} 28. a5 {[%clk 0:02:01.4]} 28... b5 {[%clk 0:02:03.7]} 29.
c4 {[%clk 0:01:58.5]} 29... Nd3+ {[%clk 0:02:02.5]} 30. Ke2 {[%clk 0:01:58.9]}
30... Nxb2 {[%clk 0:02:03.4]} 31. cxb5 {[%clk 0:01:58]} 31... axb5 {[%clk
0:02:04.3]} 32. e4 {[%clk 0:01:58.2]} 32... fxe4 {[%clk 0:02:03.1]} 33. fxe4
{[%clk 0:01:57.5]} 33... Kb7 {[%clk 0:02:01.5]} 34. Nb3 {[%clk 0:01:52.3]} 34...
Ka6 {[%clk 0:01:59.7]} 35. e5 {[%clk 0:01:30.4]} 35... Nc4 {[%clk 0:01:56.4]}
36. e6 {[%clk 0:01:29.8]} 36... Nxa5 {[%clk 0:01:54]} 37. Nd2 {[%clk 0:01:30.5]}
37... b4 {[%clk 0:01:53.1]} 38. Kd3 {[%clk 0:01:29.1]} 38... Kb5 {[%clk
0:01:52.3]} 39. Ne4 {[%clk 0:01:26.7]} 39... h4 {[%clk 0:01:50.7]} 40. Bf4
{[%clk 0:01:23.2]} 40... Nc6 {[%clk 0:01:40.4]} 41. Nd2 {[%clk 0:01:23.5]} 41...
Nd8 {[%clk 0:01:37.4]} 42. d5 {[%clk 0:01:21.7]} 42... c6 {[%clk 0:01:33.7]} 43.
Ke4 {[%clk 0:01:14.6]} 43... h3 {[%clk 0:01:33.9]} 44. Bh2 {[%clk 0:01:11.9]}
44... Nb7 {[%clk 0:01:25.2]} 45. dxc6 {[%clk 0:01:04.2]} 45... Kxc6 {[%clk
0:01:26.1]} 46. Kf5 {[%clk 0:01:05.1]} 46... Nc5 {[%clk 0:01:25.5]} 47. Nc4
{[%clk 0:01:03]} 47... b3 {[%clk 0:01:23.1]} 48. Bg1 {[%clk 0:01:01.7]} 48... d5
{[%clk 0:01:18.4]} 49. Nb2 {[%clk 0:01:02.2]} 49... d4 {[%clk 0:01:15.8]} 50.
Ke5 {[%clk 0:01:02.6]} 50... d3 {[%clk 0:01:15.5]} 51. Kf4 {[%clk 0:01:00]}
51... d2 {[%clk 0:01:15.4]} 52. Ke3 {[%clk 0:00:58]} 52... Bg5+ {[%clk
0:01:15.6]} 53. Ke2 {[%clk 0:00:57.7]} 53... Nxe6 {[%clk 0:01:16.3]} 54. Nc4
{[%clk 0:00:54.9]} 54... Kb5 {[%clk 0:01:13.2]} 55. Nxd2 {[%clk 0:00:49.1]}
55... Bxd2 {[%clk 0:01:14.1]} 56. Kxd2 {[%clk 0:00:50]} 56... Kc4 {[%clk
0:01:15]} 57. Bh2 {[%clk 0:00:46.2]} 57... Nd4 {[%clk 0:01:15.6]} 0-1

[Event "Early-Titled-Tuesday-Blitz-May-14-2024"]
[Site "Chess.com"]
[Date "2024.05.14"]
[Round "4"]
[White "Franmu14"]
[Black "chessburger_tv"]
[Result "1-0"]
[WhiteElo "2667"]
[BlackElo "2394"]
[TimeControl "180+1"]
[EndTime "8:40:16 PDT"]
[Termination "Franmu14 won by resignation"]

1. e4 {[%clk 0:03:00.9]} 1... c5 {[%clk 0:03:00.6]} 2. Nc3 {[%clk 0:02:59.7]}
2... Nc6 {[%clk 0:03:01.2]} 3. Bb5 {[%clk 0:02:58.4]} 3... Nd4 {[%clk
0:03:01.9]} 4. Bd3 {[%clk 0:02:58.1]} 4... g6 {[%clk 0:03:01]} 5. Nf3 {[%clk
0:02:57.8]} 5... Bg7 {[%clk 0:03:01.5]} 6. b3 {[%clk 0:02:58.4]} 6... Nf6 {[%clk
0:02:58.9]} 7. Bb2 {[%clk 0:02:57.6]} 7... O-O {[%clk 0:02:58.8]} 8. Nxd4 {[%clk
0:02:55.7]} 8... cxd4 {[%clk 0:02:58.8]} 9. Ne2 {[%clk 0:02:54.1]} 9... e5
{[%clk 0:02:51.9]} 10. c4 {[%clk 0:02:47.2]} 10... dxc3 {[%clk 0:02:50.5]} 11.
dxc3 {[%clk 0:02:46.1]} 11... d5 {[%clk 0:02:50.1]} 12. exd5 {[%clk 0:02:45]}
12... Qxd5 {[%clk 0:02:47.6]} 13. O-O {[%clk 0:02:41.9]} 13... Rd8 {[%clk
0:02:48]} 14. Bc4 {[%clk 0:02:37.4]} 14... Qxd1 {[%clk 0:02:31.8]} 15. Raxd1
{[%clk 0:02:38.3]} 15... Bg4 {[%clk 0:02:28.8]} 16. f3 {[%clk 0:02:38.1]} 16...
Bf5 {[%clk 0:02:26.2]} 17. Ng3 {[%clk 0:02:38.3]} 17... Bd7 {[%clk 0:02:17.2]}
18. Rfe1 {[%clk 0:02:32.6]} 18... Bc6 {[%clk 0:02:06.8]} 19. b4 {[%clk
0:02:05.9]} 19... Bd5 {[%clk 0:01:52.9]} 20. Bxd5 {[%clk 0:02:02.6]} 20... Nxd5
{[%clk 0:01:52.6]} 21. a3 {[%clk 0:01:59.1]} 21... Nb6 {[%clk 0:01:46.2]} 22.
Ne4 {[%clk 0:01:55.6]} 22... Nc4 {[%clk 0:01:40.4]} 23. Bc1 {[%clk 0:01:54.4]}
23... h6 {[%clk 0:01:40.4]} 24. Kf2 {[%clk 0:01:27.9]} 24... b6 {[%clk
0:01:39.7]} 25. g4 {[%clk 0:01:24.6]} 25... f5 {[%clk 0:01:39]} 26. gxf5 {[%clk
0:01:24.3]} 26... gxf5 {[%clk 0:01:39.9]} 27. Ng3 {[%clk 0:01:24.6]} 27... Nd6
{[%clk 0:01:14.3]} 28. Nh5 {[%clk 0:01:12.6]} 28... Nc4 {[%clk 0:00:57.6]} 29.
Rxd8+ {[%clk 0:01:05.7]} 29... Rxd8 {[%clk 0:00:57.2]} 30. Rg1 {[%clk
0:01:02.6]} 30... Nb2 {[%clk 0:00:31.2]} 31. Rxg7+ {[%clk 0:00:56.9]} 31... Kf8
{[%clk 0:00:31.7]} 32. Bxh6 {[%clk 0:00:56.7]} 32... Nd3+ {[%clk 0:00:29.9]} 33.
Kg3 {[%clk 0:00:53]} 33... f4+ {[%clk 0:00:28.9]} 34. Kg4 {[%clk 0:00:52.6]}
34... Rd6 {[%clk 0:00:18.4]} 35. Rg6+ {[%clk 0:00:44.9]} 35... Ke7 {[%clk
0:00:17.1]} 36. Bf8+ {[%clk 0:00:44.9]} 36... Kxf8 {[%clk 0:00:13.2]} 37. Rxd6
{[%clk 0:00:45.8]} 37... Kf7 {[%clk 0:00:13.8]} 38. Rxd3 {[%clk 0:00:45.1]} 1-0

[Event "Early-Titled-Tuesday-Blitz-May-14-2024"]
[Site "Chess.com"]
[Date "2024.05.14"]
[Round "4"]
[White "Gangster-accountant01"]
[Black "Chessdude1987"]
[Result "0-1"]
[WhiteElo "2553"]
[BlackElo "2391"]
[TimeControl "180+1"]
[EndTime "8:40:20 PDT"]
[Termination "Chessdude1987 won by resignation"]

1. d4 {[%clk 0:01:30.6]} 1... e6 {[%clk 0:02:58.5]} 2. e4 {[%clk 0:01:29.2]}
2... d5 {[%clk 0:02:58]} 3. Nc3 {[%clk 0:01:21.7]} 3... Nf6 {[%clk 0:02:57.4]}
4. Bg5 {[%clk 0:01:19.5]} 4... h6 {[%clk 0:02:56.9]} 5. Bxf6 {[%clk 0:01:19.6]}
5... Qxf6 {[%clk 0:02:57.8]} 6. exd5 {[%clk 0:01:19.4]} 6... Bb4 {[%clk
0:02:58.2]} 7. Bb5+ {[%clk 0:01:16]} 7... Bd7 {[%clk 0:02:58]} 8. Bxd7+ {[%clk
0:01:15.7]} 8... Nxd7 {[%clk 0:02:58.9]} 9. dxe6 {[%clk 0:01:16.4]} 9... Bxc3+
{[%clk 0:02:58.6]} 10. bxc3 {[%clk 0:01:16.2]} 10... Qxe6+ {[%clk 0:02:59.1]}
11. Qe2 {[%clk 0:01:16.7]} 11... Qxe2+ {[%clk 0:02:59.2]} 12. Nxe2 {[%clk
0:01:16.6]} 12... Nb6 {[%clk 0:02:59.8]} 13. O-O {[%clk 0:01:15]} 13... O-O-O
{[%clk 0:02:59.3]} 14. a4 {[%clk 0:01:11.9]} 14... a5 {[%clk 0:02:58.9]} 15.
Rfb1 {[%clk 0:01:11.1]} 15... Nc4 {[%clk 0:02:58.9]} 16. Rb5 {[%clk 0:01:09.9]}
16... b6 {[%clk 0:02:58.4]} 17. Nf4 {[%clk 0:01:08.4]} 17... Rhe8 {[%clk
0:02:49.9]} 18. Kf1 {[%clk 0:00:59.6]} 18... Re4 {[%clk 0:02:45.4]} 19. Nd3
{[%clk 0:00:51.8]} 19... Rde8 {[%clk 0:02:39.1]} 20. g3 {[%clk 0:00:48.7]} 20...
h5 {[%clk 0:02:38.2]} 21. Rd1 {[%clk 0:00:45.9]} 21... h4 {[%clk 0:02:37.5]} 22.
h3 {[%clk 0:00:43.1]} 22... hxg3 {[%clk 0:02:36.1]} 23. f3 {[%clk 0:00:30.1]}
23... Ne3+ {[%clk 0:02:31.9]} 24. Kg1 {[%clk 0:00:30.5]} 24... Nxd1 {[%clk
0:02:20.5]} 25. fxe4 {[%clk 0:00:28.2]} 25... Nxc3 {[%clk 0:02:20.5]} 26. Rf5
{[%clk 0:00:20.5]} 26... f6 {[%clk 0:02:14.7]} 27. e5 {[%clk 0:00:20.4]} 27...
Ne2+ {[%clk 0:02:13.8]} 28. Kg2 {[%clk 0:00:20.2]} 28... Nxd4 {[%clk 0:02:14]}
29. Rh5 {[%clk 0:00:19.7]} 29... Nxc2 {[%clk 0:02:02.6]} 30. Kxg3 {[%clk
0:00:17.7]} 30... Nb4 {[%clk 0:01:49.1]} 31. exf6 {[%clk 0:00:11.7]} 31... g6
{[%clk 0:01:40.9]} 32. Nxb4 {[%clk 0:00:09.2]} 32... gxh5 {[%clk 0:01:40.6]} 33.
Nd5 {[%clk 0:00:09.5]} 33... Kb7 {[%clk 0:01:27.3]} 34. Kh4 {[%clk 0:00:07]}
34... c6 {[%clk 0:01:26.7]} 35. Ne7 {[%clk 0:00:05.3]} 35... Rf8 {[%clk
0:01:23.4]} 36. Kg5 {[%clk 0:00:04.3]} 36... b5 {[%clk 0:01:22.6]} 37. axb5
{[%clk 0:00:03.9]} 37... cxb5 {[%clk 0:01:22.1]} 38. Ng6 {[%clk 0:00:04.5]}
38... Rb8 {[%clk 0:01:17.2]} 39. f7 {[%clk 0:00:03.5]} 39... a4 {[%clk
0:01:17.6]} 40. Nf4 {[%clk 0:00:02.9]} 40... a3 {[%clk 0:01:16.4]} 41. Kf6
{[%clk 0:00:03.6]} 41... a2 {[%clk 0:01:16.1]} 42. Ke7 {[%clk 0:00:03.8]} 42...
a1=Q {[%clk 0:01:15.8]} 43. Ne6 {[%clk 0:00:04.7]} 43... Qe5 {[%clk 0:01:08]}
0-1

[Event "Early-Titled-Tuesday-Blitz-May-14-2024"]
[Site "Chess.com"]
[Date "2024.05.14"]
[Round "4"]
[White "VirtualCoach"]
[Black "LangesNasenhaar"]
[Result "0-1"]
[WhiteElo "2189"]
[BlackElo "2460"]
[TimeControl "180+1"]
[EndTime "8:40:20 PDT"]
[Termination "LangesNasenhaar won by resignation"]

1. e4 {[%clk 0:03:00.9]} 1... g6 {[%clk 0:03:00.2]} 2. d4 {[%clk 0:02:59.4]}
2... Bg7 {[%clk 0:03:00.6]} 3. Nc3 {[%clk 0:02:59.9]} 3... c6 {[%clk 0:03:00.7]}
4. Be3 {[%clk 0:02:56.7]} 4... d5 {[%clk 0:03:00.9]} 5. Nf3 {[%clk 0:02:53]}
5... dxe4 {[%clk 0:03:00]} 6. Nxe4 {[%clk 0:02:53.9]} 6... Nd7 {[%clk
0:02:58.8]} 7. Bd3 {[%clk 0:02:52.7]} 7... Ngf6 {[%clk 0:02:59.1]} 8. Ned2
{[%clk 0:02:50.1]} 8... Nd5 {[%clk 0:02:54.8]} 9. O-O {[%clk 0:02:39.9]} 9...
Nxe3 {[%clk 0:02:54.4]} 10. fxe3 {[%clk 0:02:40.8]} 10... O-O {[%clk 0:02:54.7]}
11. e4 {[%clk 0:02:41.1]} 11... e5 {[%clk 0:02:53.2]} 12. c3 {[%clk 0:02:37.3]}
12... exd4 {[%clk 0:02:48.8]} 13. cxd4 {[%clk 0:02:38.2]} 13... Qb6 {[%clk
0:02:33.2]} 14. Nb3 {[%clk 0:02:33.2]} 14... a5 {[%clk 0:02:28.7]} 15. a4 {[%clk
0:02:27.7]} 15... Nf6 {[%clk 0:02:26.1]} 16. Nc5 {[%clk 0:02:21.6]} 16... Qb4
{[%clk 0:02:07.7]} 17. Kh1 {[%clk 0:02:01.7]} 17... Bg4 {[%clk 0:02:01.2]} 18.
Qb3 {[%clk 0:01:51.5]} 18... b6 {[%clk 0:01:51.2]} 19. Qxb4 {[%clk 0:01:47.3]}
19... axb4 {[%clk 0:01:52.1]} 20. Nb3 {[%clk 0:01:47.2]} 20... Rfd8 {[%clk
0:01:41.5]} 21. Rfc1 {[%clk 0:01:44.7]} 21... c5 {[%clk 0:01:29.1]} 22. Ne5
{[%clk 0:01:11.6]} 22... Be6 {[%clk 0:01:23.5]} 23. d5 {[%clk 0:01:03.9]} 23...
Nxd5 {[%clk 0:01:01.2]} 24. exd5 {[%clk 0:01:03]} 24... Rxd5 {[%clk 0:01:01.1]}
25. Be4 {[%clk 0:01:02.3]} 25... Bxe5 {[%clk 0:00:58.1]} 26. Re1 {[%clk
0:00:48]} 26... Bxb2 {[%clk 0:00:41.7]} 27. Rab1 {[%clk 0:00:42.4]} 27... Bc3
{[%clk 0:00:41.9]} 28. Rf1 {[%clk 0:00:30.4]} 28... Rxa4 {[%clk 0:00:37.7]} 29.
Rf3 {[%clk 0:00:15.2]} 29... Re5 {[%clk 0:00:31.8]} 0-1

[Event "Early-Titled-Tuesday-Blitz-May-14-2024"]
[Site "Chess.com"]
[Date "2024.05.14"]
[Round "4"]
[White "suyu28"]
[Black "english_player_89"]
[Result "1-0"]
[WhiteElo "2846"]
[BlackElo "2611"]
[TimeControl "180+1"]
[EndTime "8:40:23 PDT"]
[Termination "suyu28 won by checkmate"]

1. e4 {[%clk 0:02:42]} 1... e5 {[%clk 0:02:59.8]} 2. Nf3 {[%clk 0:02:41.2]} 2...
Nc6 {[%clk 0:03:00.5]} 3. Bc4 {[%clk 0:02:35.1]} 3... Bc5 {[%clk 0:02:59.7]} 4.
O-O {[%clk 0:02:33.8]} 4... Nf6 {[%clk 0:03:00.2]} 5. d3 {[%clk 0:02:33.7]} 5...
d6 {[%clk 0:03:00.7]} 6. Bg5 {[%clk 0:02:32.4]} 6... h6 {[%clk 0:03:00.1]} 7.
Bh4 {[%clk 0:02:32.3]} 7... a5 {[%clk 0:02:58.9]} 8. c3 {[%clk 0:02:31.6]} 8...
Ba7 {[%clk 0:02:56.7]} 9. Nbd2 {[%clk 0:02:31.1]} 9... Be6 {[%clk 0:02:56.5]}
10. Bb5 {[%clk 0:02:28.1]} 10... Bd7 {[%clk 0:02:41.1]} 11. Re1 {[%clk
0:02:23.5]} 11... g5 {[%clk 0:02:40.7]} 12. Bg3 {[%clk 0:02:23]} 12... Ne7
{[%clk 0:02:41.4]} 13. Bxd7+ {[%clk 0:02:20.6]} 13... Qxd7 {[%clk 0:02:42.3]}
14. d4 {[%clk 0:02:21]} 14... Ng6 {[%clk 0:02:41.8]} 15. dxe5 {[%clk 0:02:20]}
15... dxe5 {[%clk 0:02:40.3]} 16. Nc4 {[%clk 0:02:04.9]} 16... Qe6 {[%clk
0:01:56.5]} 17. Ncxe5 {[%clk 0:01:56.8]} 17... Nxe5 {[%clk 0:01:46.1]} 18. Nxe5
{[%clk 0:01:54.7]} 18... h5 {[%clk 0:01:41.1]} 19. h3 {[%clk 0:01:43.1]} 19...
h4 {[%clk 0:01:29.3]} 20. Bh2 {[%clk 0:01:40.9]} 20... Rg8 {[%clk 0:01:26.9]}
21. Ng4 {[%clk 0:01:35]} 21... Rd8 {[%clk 0:01:13]} 22. Qa4+ {[%clk 0:01:23.5]}
22... c6 {[%clk 0:00:58.1]} 23. Qxa5 {[%clk 0:01:16.5]} 23... Ra8 {[%clk
0:00:48.5]} 24. Qf5 {[%clk 0:01:12.3]} 24... Nxg4 {[%clk 0:00:47.6]} 25. hxg4
{[%clk 0:01:10.3]} 25... h3 {[%clk 0:00:46.7]} 26. Qxe6+ {[%clk 0:01:08.7]}
26... fxe6 {[%clk 0:00:46.4]} 27. gxh3 {[%clk 0:01:09.6]} 27... Rf8 {[%clk
0:00:42.6]} 28. Bg3 {[%clk 0:01:08.9]} 28... Rd8 {[%clk 0:00:36.3]} 29. Rad1
{[%clk 0:01:07.8]} 29... Ke7 {[%clk 0:00:35.6]} 30. Kg2 {[%clk 0:01:07]} 30...
Bb6 {[%clk 0:00:31.8]} 31. h4 {[%clk 0:01:06.4]} 31... Rxd1 {[%clk 0:00:16.4]}
32. Rxd1 {[%clk 0:01:05.8]} 32... Kf6 {[%clk 0:00:17]} 33. hxg5+ {[%clk
0:01:04.9]} 33... Kxg5 {[%clk 0:00:16.1]} 34. f4+ {[%clk 0:01:05.6]} 34... Kf6
{[%clk 0:00:15.3]} 35. Rd7 {[%clk 0:01:03.7]} 35... Ra8 {[%clk 0:00:13.3]} 36.
Rxb7 {[%clk 0:01:01.4]} 36... Be3 {[%clk 0:00:14]} 37. Kf3 {[%clk 0:00:59.3]}
37... Bc1 {[%clk 0:00:13.3]} 38. g5+ {[%clk 0:00:58.8]} 38... Kg6 {[%clk
0:00:13.2]} 39. Kg4 {[%clk 0:00:59.7]} 39... Bxf4 {[%clk 0:00:10.9]} 40. Bxf4
{[%clk 0:00:58.9]} 40... Rxa2 {[%clk 0:00:11.8]} 41. Be5 {[%clk 0:00:58.8]}
41... c5 {[%clk 0:00:07.4]} 42. Rg7# {[%clk 0:00:56.7]} 1-0